fUSD/lending_fUSD_20260522
["ID","MTS","AMOUNT","RATE_DAILY","PERIOD"]
[422817055,1779458606000,-500.0,0.00014,2]
[422817071,1779458607000,-500.0,0.00014,2]
[422817070,1779458607000,-500.0,0.00014,2]
[422817069,1779458607000,-500.0,0.00014,2]
[422817068,1779458607000,-500.0,0.00014,2]
[422817064,1779458607000,-500.0,0.00014,2]
[422817066,1779458607000,-500.0,0.00014,2]
[422817065,1779458607000,-500.0,0.00014,2]
[422817072,1779458607000,-500.0,0.00014,2]
[422817067,1779458607000,-487.26,0.00014,2]
[422817073,1779458607000,-500.0,0.00014,2]
[422817085,1779458607000,-245.6,0.00014,2]
[422817076,1779458607000,-500.0,0.00014,2]
[422817084,1779458607000,-500.0,0.00014,2]
[422817082,1779458607000,-500.0,0.00014,2]
[422817083,1779458607000,-500.0,0.00014,2]
[422817081,1779458607000,-500.0,0.00014,2]
[422817074,1779458607000,-526.43,0.00014,2]
[422817078,1779458607000,-500.0,0.00014,2]
[422817075,1779458607000,-500.0,0.00014,2]
[422817080,1779458607000,-500.0,0.00014,2]
[422817077,1779458607000,-500.0,0.00014,2]
[422817079,1779458607000,-500.0,0.00014,2]
[422817086,1779458609000,2749.796,0.0001307,2]
[422817093,1779458620000,218.36975709,7.653e-05,2]
[422817094,1779458620000,1128.58,8.005e-05,2]
[422817092,1779458620000,910.21024291,7.653e-05,2]
[422817091,1779458620000,1128.58,7.302e-05,2]
[422817090,1779458620000,934.8,6.95e-05,2]
[422817089,1779458620000,193.78,6.95e-05,2]
[422817088,1779458620000,156.827,0.0001307,2]
[422817087,1779458620000,-500.0,0.00014039,2]
[422817095,1779458621000,1128.58,8.356e-05,2]
[422817097,1779458621000,630.51951418,8.708e-05,2]
[422817096,1779458621000,498.06048582,8.708e-05,2]
[422817098,1779458626000,-1128.58,9.059e-05,2]
[422817099,1779458632000,-1128.58,9.411e-05,2]
[422817100,1779458637000,-1128.58,9.762e-05,2]
[422817101,1779458641000,-1128.58,0.00010114,2]
[422817102,1779458665000,-1128.58,0.00010465,2]
[422817103,1779458670000,-1128.58,0.00010817,2]
[422817106,1779458694000,-847.49,0.00011168,2]
[422817105,1779458694000,-281.09,0.00011168,2]
[422817108,1779458723000,-1128.58,0.0001152,2]
[422817107,1779458723000,-250.0,0.00011512,2]
[422817109,1779458746000,-215.27762834,0.0001152,2]
[422817110,1779458759000,-481.23614895,0.00011871,2]
[422817111,1779458773000,-647.34385105,0.00011871,2]
[422817112,1779458788000,-150.0,0.00012028,2]
[422817113,1779458792000,-1128.58,0.00012223,2]
[422817114,1779458806000,-1128.58,0.00012574,2]
[422817116,1779458940000,1000.0,0.00028073,120]
[422817117,1779459031000,-200.0,0.00012414,2]
[422817141,1779459032000,-511.30295283,0.00012882,2]
[422817142,1779459032000,-511.30295283,0.00012882,2]
[422817143,1779459032000,-511.30295283,0.00012882,2]
[422817146,1779459032000,-511.30295283,0.00012882,2]
[422817147,1779459032000,-511.30295283,0.00012882,2]
[422817144,1779459032000,-511.30295283,0.00012882,2]
[422817149,1779459032000,-511.30295283,0.00012882,2]
[422817152,1779459032000,-511.30295283,0.00012882,2]
[422817155,1779459032000,-511.30295283,0.00012882,2]
[422817153,1779459032000,-511.30295283,0.00012882,2]
[422817159,1779459032000,-511.30295283,0.00012882,2]
[422817157,1779459032000,-511.30295283,0.00012882,2]
[422817150,1779459032000,-511.30295283,0.00012882,2]
[422817140,1779459032000,-511.30295283,0.00012882,2]
[422817154,1779459032000,-511.30295283,0.00012882,2]
[422817160,1779459032000,-511.30295283,0.00012882,2]
[422817158,1779459032000,-511.30295283,0.00012882,2]
[422817156,1779459032000,-511.30295283,0.00012882,2]
[422817139,1779459032000,-511.30295283,0.00012882,2]
[422817123,1779459032000,-671.44228671,0.00012784,2]
[422817138,1779459032000,-511.30295283,0.00012882,2]
[422817161,1779459032000,-511.30295283,0.00012882,2]
[422817120,1779459032000,-28.22,0.00012414,2]
[422817122,1779459032000,-220.96,0.00012784,2]
[422817124,1779459032000,-614.38785408,0.00012784,2]
[422817121,1779459032000,-157.82,0.00012574,2]
[422817127,1779459032000,-150.0,0.00012824,2]
[422817130,1779459032000,-4226.90498449,0.00012825,2]
[422817125,1779459032000,-342.86699056,0.00012784,2]
[422817137,1779459032000,-511.30295283,0.00012882,2]
[422817126,1779459032000,-650.34286865,0.00012784,2]
[422817129,1779459032000,-1200.0,0.00012824,2]
[422817132,1779459032000,-1557.63357986,0.00012825,2]
[422817131,1779459032000,-457.24022354,0.00012825,2]
[422817133,1779459032000,-258.87161287,0.00012825,2]
[422817134,1779459032000,-5086.03197398,0.00012825,2]
[422817136,1779459032000,-5435.68026562,0.0001288,2]
[422817135,1779459032000,-195.47780124,0.00012874,2]
[422817148,1779459032000,-511.30295283,0.00012882,2]
[422817128,1779459032000,-300.0,0.00012824,2]
[422817162,1779459032000,-511.30295283,0.00012882,2]
[422817151,1779459032000,-511.30295283,0.00012882,2]
[422817166,1779459032000,-511.30295283,0.00012882,2]
[422817187,1779459032000,-511.30295283,0.00012882,2]
[422817188,1779459032000,-511.30295283,0.00012882,2]
[422817192,1779459032000,-511.30295283,0.00012882,2]
[422817191,1779459032000,-511.30295283,0.00012882,2]
[422817190,1779459032000,-511.30295283,0.00012882,2]
[422817189,1779459032000,-511.30295283,0.00012882,2]
[422817186,1779459032000,-511.30295283,0.00012882,2]
[422817193,1779459032000,-511.30295283,0.00012882,2]
[422817185,1779459032000,-511.30295283,0.00012882,2]
[422817196,1779459032000,-511.30295283,0.00012882,2]
[422817198,1779459032000,-511.30295283,0.00012882,2]
[422817201,1779459032000,-511.30295283,0.00012882,2]
[422817200,1779459032000,-511.30295283,0.00012882,2]
[422817199,1779459032000,-511.30295283,0.00012882,2]
[422817197,1779459032000,-511.30295283,0.00012882,2]
[422817204,1779459032000,-511.30295283,0.00012882,2]
[422817202,1779459032000,-511.30295283,0.00012882,2]
[422817163,1779459032000,-511.30295283,0.00012882,2]
[422817194,1779459032000,-511.30295283,0.00012882,2]
[422817181,1779459032000,-511.30295283,0.00012882,2]
[422817195,1779459032000,-511.30295283,0.00012882,2]
[422817178,1779459032000,-511.30295283,0.00012882,2]
[422817176,1779459032000,-511.30295283,0.00012882,2]
[422817171,1779459032000,-511.30295283,0.00012882,2]
[422817167,1779459032000,-511.30295283,0.00012882,2]
[422817164,1779459032000,-511.30295283,0.00012882,2]
[422817165,1779459032000,-511.30295283,0.00012882,2]
[422817170,1779459032000,-511.30295283,0.00012882,2]
[422817169,1779459032000,-511.30295283,0.00012882,2]
[422817184,1779459032000,-511.30295283,0.00012882,2]
[422817203,1779459032000,-511.30295283,0.00012882,2]
[422817172,1779459032000,-511.30295283,0.00012882,2]
[422817174,1779459032000,-511.30295283,0.00012882,2]
[422817182,1779459032000,-511.30295283,0.00012882,2]
[422817175,1779459032000,-511.30295283,0.00012882,2]
[422817179,1779459032000,-511.30295283,0.00012882,2]
[422817180,1779459032000,-511.30295283,0.00012882,2]
[422817177,1779459032000,-511.30295283,0.00012882,2]
[422817173,1779459032000,-511.30295283,0.00012882,2]
[422817183,1779459032000,-511.30295283,0.00012882,2]
[422817168,1779459032000,-511.30295283,0.00012882,2]
[422817219,1779459033000,-511.30295283,0.00012882,2]
[422817224,1779459033000,-511.30295285,0.00012882,2]
[422817225,1779459033000,-500.0,0.00012882,2]
[422817222,1779459033000,-511.30295285,0.00012882,2]
[422817216,1779459033000,-511.30295283,0.00012882,2]
[422817217,1779459033000,-511.30295283,0.00012882,2]
[422817211,1779459033000,-511.30295283,0.00012882,2]
[422817214,1779459033000,-511.30295283,0.00012882,2]
[422817213,1779459033000,-511.30295283,0.00012882,2]
[422817212,1779459033000,-511.30295283,0.00012882,2]
[422817207,1779459033000,-511.30295283,0.00012882,2]
[422817215,1779459033000,-511.30295283,0.00012882,2]
[422817220,1779459033000,-511.30295283,0.00012882,2]
[422817218,1779459033000,-511.30295283,0.00012882,2]
[422817210,1779459033000,-511.30295283,0.00012882,2]
[422817209,1779459033000,-511.30295283,0.00012882,2]
[422817206,1779459033000,-511.30295283,0.00012882,2]
[422817205,1779459033000,-511.30295283,0.00012882,2]
[422817208,1779459033000,-511.30295283,0.00012882,2]
[422817228,1779459033000,-500.0,0.00012883,2]
[422817221,1779459033000,-511.30295283,0.00012882,2]
[422817223,1779459033000,-511.30295285,0.00012882,2]
[422817236,1779459033000,-236.04774571,0.00012883,2]
[422817229,1779459033000,-500.0,0.00012883,2]
[422817248,1779459033000,-1254.41808677,0.00012884,2]
[422817226,1779459033000,-90871.68362799,0.00012883,2]
[422817247,1779459033000,-81053.23803647,0.00012884,2]
[422817249,1779459033000,-1648.83586652,0.00012884,2]
[422817246,1779459033000,-72286.72180569,0.00012884,2]
[422817245,1779459033000,-4487.59686548,0.00012884,2]
[422817241,1779459033000,-300.0,0.00012883,2]
[422817242,1779459033000,-666.0,0.00012883,2]
[422817239,1779459033000,-300.0,0.00012883,2]
[422817240,1779459033000,-417.13114333,0.00012883,2]
[422817244,1779459033000,-666.0,0.00012883,2]
[422817238,1779459033000,-300.0,0.00012883,2]
[422817235,1779459033000,-289.76308617,0.00012883,2]
[422817234,1779459033000,-500.0,0.00012883,2]
[422817233,1779459033000,-500.0,0.00012883,2]
[422817243,1779459033000,-300.0,0.00012883,2]
[422817227,1779459033000,-118361.5417248,0.00012883,2]
[422817231,1779459033000,-302.31451925,0.00012883,2]
[422817230,1779459033000,-500.0,0.00012883,2]
[422817232,1779459033000,-261.14159656,0.00012883,2]
[422817237,1779459033000,-249.598082,0.00012883,2]
[422817257,1779459038000,-25548.38353755,0.00012884,2]
[422817259,1779459038000,-1939.06989098,0.00012884,2]
[422817258,1779459038000,-77000.00000001,0.00012884,2]
[422817261,1779459038000,-444.93503332,0.00012884,2]
[422817262,1779459038000,-1930.91833696,0.00012884,2]
[422817260,1779459038000,-287.32453981,0.00012884,2]
[422817264,1779459039000,-2691.3124307,0.00012884,2]
[422817266,1779459039000,-429.2810088,0.00012884,2]
[422817268,1779459039000,-2006.28775118,0.00012884,2]
[422817265,1779459039000,-1176.08970836,0.00012884,2]
[422817263,1779459039000,-642.21997807,0.00012884,2]
[422817312,1779459040000,-400.765,0.00012884,2]
[422817313,1779459040000,-632.2869235,0.00012884,2]
[422817311,1779459040000,-6478.86472451,0.00012884,2]
[422817316,1779459041000,-300.0,0.00012978,2]
[422817314,1779459041000,-1756851.71747532,0.00012884,2]
[422817315,1779459041000,-1128.58,0.00012926,2]
[422817320,1779459041000,-1732.78621704,0.00012979,2]
[422817319,1779459041000,-385.47463907,0.00012979,2]
[422817317,1779459041000,-300.0,0.00012978,2]
[422817318,1779459041000,-637602.57120641,0.00012979,2]
[422817345,1779459046000,-743.65948404,0.00012979,2]
[422817344,1779459046000,-777932.99265874,0.00012979,2]
[422817346,1779459046000,-3065.12052064,0.00012979,2]
[422817347,1779459046000,-0.00790761,0.00012979,2]
[422817348,1779459046000,-10342.82206921,0.00012979,2]
[422817350,1779459046000,-2496.80148835,0.00012979,2]
[422817356,1779459046000,-2753.58477855,0.00013056,2]
[422817352,1779459046000,-53355.92930315,0.00012979,2]
[422817353,1779459046000,-2000.0,0.0001298,2]
[422817357,1779459046000,-509.58174997,0.00013056,2]
[422817354,1779459046000,-5000.0,0.0001298,2]
[422817355,1779459046000,-2700.0,0.00013,3]
[422817351,1779459046000,-1798.57450574,0.00012979,2]
[422817349,1779459046000,-10543.26,0.00012979,2]
[422817359,1779459047000,-961.205791,0.00013056,2]
[422817358,1779459047000,-250.93420955,0.00013056,2]
[422817360,1779459047000,-7111.37584564,0.00013056,2]
[422817363,1779459047000,-1128.58,0.00013277,2]
[422817362,1779459047000,-500.0,0.00013082,2]
[422817364,1779459047000,-893.25235436,0.00013286,2]
[422817371,1779459302000,164.0,0.00028,120]
[422817372,1779459334000,1560.3539426,0.00028082,120]
[422817373,1779459364000,-150.0,0.00011681,2]
[422817374,1779459442000,158.0392593,7.547e-05,2]
[422817375,1779459482000,451.968,0.00028082,120]
[422817379,1779459644000,157.1,6.81e-05,2]
[422817377,1779459644000,157.1,6.08e-05,2]
[422817378,1779459644000,157.1,6.445e-05,2]
[422817384,1779459645000,157.1,8.636e-05,2]
[422817383,1779459645000,157.1,8.271e-05,2]
[422817382,1779459645000,157.1,7.905e-05,2]
[422817381,1779459645000,157.1,7.54e-05,2]
[422817380,1779459645000,157.1,7.175e-05,2]
[422817385,1779459654000,462.74262072,0.00028,120]
[422817386,1779459661000,153.0,7.547e-05,2]
[422817387,1779459662000,153.0,8.547e-05,2]
[422817388,1779459670000,231.37131036,0.00028,120]
[422817389,1779459679000,150.0,0.00028,120]
[422817391,1779459735000,300.0,0.00028,120]
[422817394,1779459819000,136.23403257,8.955e-05,2]
[422817393,1779459819000,622.23146943,8.955e-05,2]
[422817395,1779459857000,-157.1,9.001e-05,2]
[422817398,1779459959000,-130.74420266,9.039e-05,2]
[422817397,1779459959000,-300.0,9.039e-05,2]
[422817396,1779459959000,-300.0,9.039e-05,2]
[422817399,1779460011000,-331.59953354,9.039e-05,2]
[422817400,1779460141000,1000.0,0.00028081,120]
[422817402,1779460162000,-24799.58861678,9.04e-05,2]
[422817401,1779460162000,-737.6562638,9.039e-05,2]
[422817457,1779460232000,-595.31,0.00011303,2]
[422817459,1779460232000,-413.36,0.00011888,2]
[422817451,1779460232000,-474.12,0.00011099,2]
[422817454,1779460232000,-150.0,0.00011184,2]
[422817448,1779460232000,-167.52,0.00010934,2]
[422817452,1779460232000,-92.45187844,0.00011112,2]
[422817450,1779460232000,-2000.0,0.0001108,2]
[422817449,1779460232000,-200.0,0.00011058,2]
[422817441,1779460232000,-157.1,9.731e-05,2]
[422817455,1779460232000,-157.1,0.00011191,2]
[422817444,1779460232000,-157.1,0.00010461,2]
[422817443,1779460232000,-157.1,0.00010096,2]
[422817446,1779460232000,-157.1,0.00010826,2]
[422817440,1779460232000,-150.0,9.721e-05,2]
[422817442,1779460232000,-642.59283263,9.943e-05,2]
[422817437,1779460232000,-331.59834712,9.04e-05,2]
[422817436,1779460232000,-10530.84884172,9.04e-05,2]
[422817447,1779460232000,-6331.88,0.00010826,2]
[422817435,1779460232000,-1200.0,9.039e-05,2]
[422817438,1779460232000,-157.1,9.366e-05,2]
[422817456,1779460232000,-300.0,0.00011272,2]
[422817439,1779460232000,-159.88810009,9.547e-05,2]
[422817458,1779460232000,-157.1,0.00011556,2]
[422817453,1779460232000,-135.76812156,0.00011112,2]
[422817478,1779460232000,-900.0,0.00012365,2]
[422817479,1779460232000,-393.653476,0.00012365,2]
[422817475,1779460232000,-471.84604647,0.00012365,2]
[422817477,1779460232000,-272.12352312,0.00012365,2]
[422817476,1779460232000,-354.00232647,0.00012365,2]
[422817474,1779460232000,-2000.0,0.00012365,2]
[422817472,1779460232000,-6544.65756157,0.00012365,2]
[422817470,1779460232000,-71226.94503381,0.00012365,2]
[422817469,1779460232000,-125276.34356466,0.00012365,2]
[422817473,1779460232000,-14434.79356653,0.00012365,2]
[422817463,1779460232000,-1298.25,0.00011938,2]
[422817460,1779460232000,-879.33,0.000119,2]
[422817468,1779460232000,-25370.39125541,0.0001229,2]
[422817462,1779460232000,-150.0,0.00011938,2]
[422817467,1779460232000,-13398.81336127,0.0001229,2]
[422817461,1779460232000,-157.1,0.00011922,2]
[422817471,1779460232000,-159578.53890731,0.00012365,2]
[422817465,1779460232000,-200.0,0.00012,2]
[422817466,1779460232000,-413.36,0.00012185,2]
[422817464,1779460232000,-157.0,0.00011975,2]
[422817488,1779460237000,-351.54996218,0.00012365,2]
[422817484,1779460237000,-288.399994,0.00012365,2]
[422817487,1779460237000,-11125.88655349,0.00012365,2]
[422817491,1779460237000,-1777.93155348,0.0001239,2]
[422817489,1779460237000,-96969.11987009,0.00012365,2]
[422817490,1779460237000,-147414.7108143,0.00012365,2]
[422817492,1779460237000,-166.32,0.0001242,2]
[422817499,1779460237000,-595.31,0.00012716,2]
[422817494,1779460237000,-413.36,0.00012483,2]
[422817496,1779460237000,-25370.39125541,0.0001258,2]
[422817495,1779460237000,-13398.81336127,0.0001258,2]
[422817498,1779460237000,-2500.0,0.00012682,2]
[422817497,1779460237000,-25156.7187,0.00012682,2]
[422817500,1779460237000,-167.52,0.00012738,2]
[422817493,1779460237000,-2000.0,0.00012465,2]
[422817513,1779460238000,-641.6048381,0.00012926,2]
[422817512,1779460238000,-182.77,0.00012922,2]
[422817514,1779460238000,-500.0,0.00012926,2]
[422817509,1779460238000,-1400.52537883,0.00012882,2]
[422817507,1779460238000,-25370.39125541,0.0001287,2]
[422817508,1779460238000,-827.18086267,0.00012882,2]
[422817505,1779460238000,-5000.0,0.00012827,2]
[422817501,1779460238000,-413.36,0.0001278,2]
[422817503,1779460238000,-265.36532742,0.00012825,2]
[422817516,1779460238000,-331.03578284,0.00012926,2]
[422817511,1779460238000,-198.65331207,0.00012917,2]
[422817506,1779460238000,-13398.81336127,0.0001287,2]
[422817510,1779460238000,-300.0,0.00012883,2]
[422817518,1779460238000,-324.7186574,0.00012926,2]
[422817515,1779460238000,-500.0,0.00012926,2]
[422817528,1779460238000,-522.46442414,0.00012927,2]
[422817527,1779460238000,-2245.908,0.00012927,2]
[422817526,1779460238000,-2045.69891758,0.00012927,2]
[422817524,1779460238000,-3120.92286779,0.00012927,2]
[422817525,1779460238000,-822.61190931,0.00012927,2]
[422817523,1779460238000,-2723.95983582,0.00012927,2]
[422817522,1779460238000,-652.19230968,0.00012927,2]
[422817520,1779460238000,-11651.85560326,0.00012927,2]
[422817519,1779460238000,-150.0,0.00012926,2]
[422817517,1779460238000,-500.0,0.00012926,2]
[422817521,1779460238000,-1962.06417162,0.00012927,2]
[422817567,1779460241000,-150.0,0.00013488,2]
[422817560,1779460241000,-500.0,0.00013329,2]
[422817565,1779460241000,-13398.81336127,0.0001345,2]
[422817566,1779460241000,-150.0,0.00013488,2]
[422817564,1779460241000,-166.32,0.00013445,2]
[422817561,1779460241000,-2315.0,0.000134,2]
[422817569,1779460241000,-150.0,0.00013488,2]
[422817570,1779460241000,-150.0,0.00013488,2]
[422817568,1779460241000,-150.0,0.00013488,2]
[422817575,1779460241000,-150.0,0.00013559,2]
[422817563,1779460241000,-172.94148,0.00013425,2]
[422817572,1779460241000,-150.0,0.00013488,2]
[422817571,1779460241000,-150.0,0.00013488,2]
[422817582,1779460241000,-192.110519,0.00013652,2]
[422817559,1779460241000,-615.5296937,0.00013324,2]
[422817573,1779460241000,-315.366298,0.00013491,2]
[422817574,1779460241000,-265.36532739,0.00013517,2]
[422817578,1779460241000,-367.232331,0.00013622,2]
[422817580,1779460241000,-150.0,0.0001363,2]
[422817562,1779460241000,-247.642467,0.00013424,2]
[422817558,1779460241000,-290.56694824,0.00013286,2]
[422817550,1779460241000,-700.0,0.00013082,2]
[422817553,1779460241000,-265.36532739,0.00013171,2]
[422817535,1779460241000,-2500.0,0.00012682,2]
[422817536,1779460241000,-500.0,0.00012781,2]
[422817537,1779460241000,-636331.15120641,0.00012927,2]
[422817541,1779460241000,-166.32,0.00012933,2]
[422817538,1779460241000,-66710.60042459,0.00012927,2]
[422817540,1779460241000,-113649.4828922,0.00012927,2]
[422817539,1779460241000,-24678.2364565,0.00012927,2]
[422817542,1779460241000,-157.0,0.00012975,2]
[422817544,1779460241000,-5676.87168913,0.00013,2]
[422817557,1779460241000,-1036.59396591,0.00013286,2]
[422817543,1779460241000,-3213.21534311,0.00012991,2]
[422817546,1779460241000,-255.0,0.00013013,2]
[422817549,1779460241000,-413.36,0.00013077,2]
[422817548,1779460241000,-500.0,0.00013055,2]
[422817547,1779460241000,-5414.34385621,0.0001305,2]
[422817551,1779460241000,-13398.81336127,0.0001316,2]
[422817552,1779460241000,-25370.39125541,0.0001316,2]
[422817555,1779460241000,-500.0,0.00013233,2]
[422817556,1779460241000,-1000.0,0.00013286,2]
[422817554,1779460241000,-500.0,0.00013205,2]
[422817545,1779460241000,-3781.18625224,0.00013,15]
[422817581,1779460241000,-150.0,0.00013638,2]
[422817577,1779460241000,-276.5,0.00013608,2]
[422817579,1779460241000,-178.96984945,0.0001363,2]
[422817606,1779460241000,-405.29129272,0.00013698,2]
[422817608,1779460241000,-500.0,0.00013698,2]
[422817613,1779460241000,-500.0,0.00013698,2]
[422817612,1779460241000,-404.1758266,0.00013698,2]
[422817618,1779460241000,-500.0,0.00013698,2]
[422817619,1779460241000,-500.0,0.00013698,2]
[422817623,1779460241000,-500.0,0.00013698,2]
[422817621,1779460241000,-445.93432849,0.00013698,2]
[422817615,1779460241000,-500.0,0.00013698,2]
[422817604,1779460241000,-500.0,0.00013698,2]
[422817614,1779460241000,-500.0,0.00013698,2]
[422817622,1779460241000,-500.0,0.00013698,2]
[422817617,1779460241000,-500.0,0.00013698,2]
[422817624,1779460241000,-500.0,0.00013698,2]
[422817625,1779460241000,-500.0,0.00013698,2]
[422817626,1779460241000,-500.0,0.00013698,2]
[422817627,1779460241000,-500.0,0.00013698,2]
[422817628,1779460241000,-500.0,0.00013698,2]
[422817629,1779460241000,-476.99893723,0.00013698,2]
[422817576,1779460241000,-500.0,0.00013603,2]
[422817616,1779460241000,-500.0,0.00013698,2]
[422817607,1779460241000,-500.0,0.00013698,2]
[422817620,1779460241000,-500.0,0.00013698,2]
[422817605,1779460241000,-500.0,0.00013698,2]
[422817603,1779460241000,-500.0,0.00013698,2]
[422817588,1779460241000,-500.0,0.00013698,2]
[422817583,1779460241000,-244.647795,0.00013652,2]
[422817585,1779460241000,-500.0,0.00013698,2]
[422817584,1779460241000,-500.0,0.00013698,2]
[422817586,1779460241000,-500.0,0.00013698,2]
[422817594,1779460241000,-500.0,0.00013698,2]
[422817590,1779460241000,-500.0,0.00013698,2]
[422817595,1779460241000,-198.14496198,0.00013698,2]
[422817598,1779460241000,-500.0,0.00013698,2]
[422817591,1779460241000,-500.0,0.00013698,2]
[422817593,1779460241000,-500.0,0.00013698,2]
[422817597,1779460241000,-500.0,0.00013698,2]
[422817592,1779460241000,-395.3998277,0.00013698,2]
[422817600,1779460241000,-500.0,0.00013698,2]
[422817610,1779460241000,-500.0,0.00013698,2]
[422817611,1779460241000,-500.0,0.00013698,2]
[422817599,1779460241000,-500.0,0.00013698,2]
[422817602,1779460241000,-500.0,0.00013698,2]
[422817601,1779460241000,-500.0,0.00013698,2]
[422817609,1779460241000,-500.0,0.00013698,2]
[422817669,1779460242000,-500.0,0.00013698,2]
[422817671,1779460242000,-500.0,0.00013698,2]
[422817679,1779460242000,-500.0,0.00013698,2]
[422817674,1779460242000,-500.0,0.00013698,2]
[422817678,1779460242000,-500.0,0.00013698,2]
[422817663,1779460242000,-500.0,0.00013698,2]
[422817667,1779460242000,-316.83110774,0.00013698,2]
[422817665,1779460242000,-500.0,0.00013698,2]
[422817657,1779460242000,-500.0,0.00013698,2]
[422817676,1779460242000,-500.0,0.00013698,2]
[422817662,1779460242000,-500.0,0.00013698,2]
[422817680,1779460242000,-219.45540704,0.00013698,2]
[422817700,1779460242000,-538.05787571,0.00013698,2]
[422817681,1779460242000,-500.0,0.00013698,2]
[422817683,1779460242000,-500.0,0.00013698,2]
[422817686,1779460242000,-500.0,0.00013698,2]
[422817685,1779460242000,-500.0,0.00013698,2]
[422817684,1779460242000,-500.0,0.00013698,2]
[422817688,1779460242000,-500.0,0.00013698,2]
[422817698,1779460242000,-500.0,0.00013698,2]
[422817689,1779460242000,-500.0,0.00013698,2]
[422817699,1779460242000,-449.94,0.00013698,2]
[422817694,1779460242000,-500.0,0.00013698,2]
[422817655,1779460242000,-500.0,0.00013698,2]
[422817682,1779460242000,-500.0,0.00013698,2]
[422817656,1779460242000,-500.0,0.00013698,2]
[422817632,1779460242000,-500.0,0.00013698,2]
[422817660,1779460242000,-500.0,0.00013698,2]
[422817635,1779460242000,-500.0,0.00013698,2]
[422817633,1779460242000,-500.0,0.00013698,2]
[422817634,1779460242000,-500.0,0.00013698,2]
[422817630,1779460242000,-500.0,0.00013698,2]
[422817691,1779460242000,-500.0,0.00013698,2]
[422817631,1779460242000,-575.12416535,0.00013698,2]
[422817637,1779460242000,-500.0,0.00013698,2]
[422817636,1779460242000,-527.2240957,0.00013698,2]
[422817638,1779460242000,-500.0,0.00013698,2]
[422817640,1779460242000,-500.0,0.00013698,2]
[422817639,1779460242000,-500.0,0.00013698,2]
[422817641,1779460242000,-500.0,0.00013698,2]
[422817642,1779460242000,-500.0,0.00013698,2]
[422817643,1779460242000,-500.0,0.00013698,2]
[422817646,1779460242000,-500.0,0.00013698,2]
[422817644,1779460242000,-500.0,0.00013698,2]
[422817645,1779460242000,-500.0,0.00013698,2]
[422817658,1779460242000,-500.0,0.00013698,2]
[422817648,1779460242000,-500.0,0.00013698,2]
[422817647,1779460242000,-500.0,0.00013698,2]
[422817653,1779460242000,-500.0,0.00013698,2]
[422817651,1779460242000,-500.0,0.00013698,2]
[422817649,1779460242000,-500.0,0.00013698,2]
[422817652,1779460242000,-217.28622726,0.00013698,2]
[422817650,1779460242000,-500.0,0.00013698,2]
[422817654,1779460242000,-500.0,0.00013698,2]
[422817695,1779460242000,-500.0,0.00013698,2]
[422817687,1779460242000,-500.0,0.00013698,2]
[422817693,1779460242000,-500.0,0.00013698,2]
[422817746,1779460242000,-150.99,0.00013699,2]
[422817741,1779460242000,-500.0,0.00013698,2]
[422817740,1779460242000,-500.0,0.00013698,2]
[422817747,1779460242000,-851.62,0.00013699,2]
[422817750,1779460242000,-4999.99,0.00013699,2]
[422817745,1779460242000,-299.99,0.00013699,2]
[422817748,1779460242000,-6223.9,0.00013699,2]
[422817749,1779460242000,-7502.01,0.00013699,2]
[422817751,1779460242000,-1579.39,0.00013699,2]
[422817753,1779460242000,-9999.99,0.00013699,2]
[422817752,1779460242000,-1000.0,0.00013699,2]
[422817755,1779460242000,-7997.82,0.00013699,2]
[422817761,1779460242000,-163.0,0.0001372,2]
[422817762,1779460242000,-261.0,0.00013736,5]